fUST/lending_fUST_20250818
["ID","MTS","AMOUNT","RATE_DAILY","PERIOD"]
[379997811,1755466240966,-500.0,0.00020617,2]
[379997813,1755466240975,-168.0,0.00020646,2]
[379997815,1755466240984,-299.0,0.0002065,2]
[379997816,1755466240994,-171.7,0.00020688,2]
[379997818,1755466241003,-160.0,0.00020713,2]
[379997819,1755466241012,-160.0,0.00020713,2]
[379997820,1755466241021,-160.0,0.00020713,2]
[379997821,1755466241031,-160.0,0.00020713,2]
[379997822,1755466241041,-160.0,0.00020713,2]
[379997824,1755466241051,-215.71995163,0.00020713,2]
[379997825,1755466241061,-160.0,0.00020713,2]
[379997826,1755466241070,-843.71309931,0.00020713,2]
[379997827,1755466241080,-417.15472785,0.00020713,2]
[379997828,1755466241089,-528.48506731,0.00020713,2]
[379997829,1755466241099,-12682.46447135,0.00020713,2]
[379997830,1755466241108,-160.0,0.00020713,2]
[379997831,1755466241118,-375.77065697,0.00020713,2]
[379997832,1755466241127,-232.1512529,0.00020713,2]
[379997833,1755466241137,-160.0,0.00020713,2]
[379997834,1755466241146,-160.0,0.00020713,2]
[379997835,1755466241155,-160.0,0.00020713,2]
[379997836,1755466241165,-216.83204348,0.00020713,2]
[379997837,1755466241176,-151.0,0.00020713,2]
[379997838,1755466241185,-151.0,0.00020713,2]
[379997839,1755466241198,-151.0,0.00020713,2]
[379997840,1755466241207,-151.0,0.00020713,2]
[379997841,1755466241217,-421.04793,0.00020713,2]
[379997842,1755466241226,-421.04793,0.00020713,2]
[379997843,1755466241237,-151.0,0.00020713,2]
[379997844,1755466241246,-151.0,0.00020713,2]
[379997845,1755466241256,-151.0,0.00020713,2]
[379997846,1755466241267,-151.0,0.00020713,2]
[379997847,1755466241276,-151.0,0.00020713,2]
[379997848,1755466241286,-313.528886,0.00020713,2]
[379997849,1755466241296,-313.528886,0.00020713,2]
[379997850,1755466241306,-449.42232837,0.00020743,2]
[379997851,1755466241315,-1000.0,0.00020765,2]
[379997852,1755466241325,-1680.0,0.00020776,2]
[379997853,1755466241335,-160.0,0.00020776,2]
[379997854,1755466241345,-1680.0,0.00020777,2]
[379997855,1755466241355,-114838.01867049,0.000208,2]
[379997862,1755466243694,-676.41402685,0.000208,2]
[379997863,1755466243772,-4780.84239314,0.00018966,2]
[379997866,1755466246323,-422.748628,0.00018776,2]
[379997919,1755466778375,294.6434097,0.00017962,2]
[379997934,1755466808130,5000.0,0.00018371,2]
[379997965,1755466854543,252.7357736,0.00028,120]
[379998021,1755467010131,4577.251372,0.00018371,2]
[379998022,1755467023488,304.670553,0.00013699,2]
[379998055,1755467198119,-160.0,0.00018711,2]
[379998056,1755467198139,-184.18210763,0.00018823,2]
[379998057,1755467198161,-101.97158471,0.00018861,2]
[379998100,1755467432781,-1200.0,0.00018899,2]
[379998101,1755467432791,-302.66710251,0.000189,2]
[379998102,1755467432800,-2489.69634967,0.000189,2]
[379998126,1755467438664,-197.23323737,0.000189,2]
[379998128,1755467438675,-300.0,0.00018954,2]
[379998130,1755467438684,-300.0,0.00018954,2]
[379998132,1755467438693,-300.0,0.00018954,2]
[379998134,1755467438703,-300.0,0.00018954,2]
[379998136,1755467438712,-1200.0,0.00018955,2]
[379998138,1755467438721,-2736.13751404,0.00018956,2]
[379998140,1755467438732,-6594.80932481,0.00018956,2]
[379998143,1755467438744,-40669.05316115,0.00018956,2]
[379998145,1755467438754,-848.43,0.00018956,3]
[379998147,1755467438763,-588.28,0.00018956,3]
[379998149,1755467438772,-190.3779078,0.00018965,2]
[379998151,1755467438782,-313.94135857,0.00018965,2]
[379998153,1755467438791,-500.0,0.00018965,2]
[379998155,1755467438799,-500.0,0.00018965,2]
[379998156,1755467438808,-500.0,0.00018965,2]
[379998157,1755467438818,-445.68229269,0.00018965,2]
[379998158,1755467438827,-500.0,0.00018965,2]
[379998159,1755467438836,-500.0,0.00018965,2]
[379998160,1755467438845,-500.0,0.00018965,2]
[379998161,1755467438855,-500.0,0.00018965,2]
[379998162,1755467438864,-500.0,0.00018965,2]
[379998163,1755467438874,-500.0,0.00018965,2]
[379998164,1755467438883,-500.0,0.00018965,2]
[379998165,1755467438892,-500.0,0.00018965,2]
[379998166,1755467438902,-83476.21584719,0.00018966,2]
[379998167,1755467438911,-294.14,0.00019068,3]
[379998168,1755467438920,-882.46,0.00019068,3]
[379998169,1755467438941,-1019.75845652,0.00019077,2]
[379998170,1755467438954,-302.66710251,0.00019089,2]
[379998171,1755467438963,-500.0,0.00019173,2]
[379998172,1755467438972,-500.0,0.00019173,2]
[379998173,1755467438981,-170.67120866,0.00019173,2]
[379998174,1755467438993,-509.4840268,0.00019173,2]
[379998175,1755467439003,-500.0,0.00019173,2]
[379998176,1755467439012,-500.0,0.00019173,2]
[379998177,1755467439021,-500.0,0.00019173,2]
[379998178,1755467439031,-500.0,0.00019173,2]
[379998179,1755467439040,-500.0,0.00019173,2]
[379998180,1755467439050,-500.0,0.00019173,2]
[379998181,1755467439059,-569.61629274,0.00019173,2]
[379998182,1755467439068,-500.0,0.00019173,2]
[379998183,1755467439079,-500.0,0.00019173,2]
[379998184,1755467439089,-500.0,0.00019173,2]
[379998185,1755467439098,-285.93741499,0.00019177,2]
[379998186,1755467439107,-480.0,0.00019178,2]
[379998187,1755467439116,-480.0,0.00019178,2]
[379998188,1755467439126,-524.79674422,0.00019178,2]
[379998189,1755467439135,-480.0,0.00019178,2]
[379998190,1755467439144,-420.0,0.00019178,2]
[379998191,1755467439153,-480.0,0.00019178,2]
[379998192,1755467439163,-480.0,0.00019178,2]
[379998193,1755467439172,-480.0,0.00019178,2]
[379998194,1755467439182,-1000.0,0.00019178,2]
[379998195,1755467439191,-480.0,0.00019178,2]
[379998196,1755467439200,-460.95870535,0.00019178,2]
[379998197,1755467439210,-450.82653825,0.00019178,2]
[379998198,1755467439219,-480.0,0.00019178,2]
[379998199,1755467439228,-480.0,0.00019178,2]
[379998200,1755467439237,-480.0,0.00019178,2]
[379998201,1755467439246,-464.65173063,0.00019178,2]
[379998202,1755467439256,-480.0,0.00019178,2]
[379998203,1755467439265,-480.0,0.00019178,2]
[379998204,1755467439275,-480.0,0.00019178,2]
[379998205,1755467439284,-480.0,0.00019178,2]
[379998206,1755467439294,-480.0,0.00019178,2]
[379998208,1755467439303,-460.0,0.00019178,2]
[379998210,1755467439312,-480.0,0.00019178,2]
[379998211,1755467439321,-480.0,0.00019178,2]
[379998212,1755467439330,-480.0,0.00019178,2]
[379998213,1755467439339,-480.0,0.00019178,2]
[379998214,1755467439348,-480.0,0.00019178,2]
[379998215,1755467439357,-615.79121219,0.00019178,2]
[379998216,1755467439367,-511.5458643,0.00019178,2]
[379998217,1755467439376,-500.0,0.00019178,2]
[379998218,1755467439386,-500.0,0.00019178,2]
[379998219,1755467439395,-257.43573212,0.00019178,2]
[379998220,1755467439404,-500.0,0.00019178,2]
[379998221,1755467439414,-500.0,0.00019178,2]
[379998222,1755467439423,-168.26462039,0.00019178,2]
[379998223,1755467439433,-480.0,0.00019178,2]
[379998224,1755467439443,-480.0,0.00019178,2]
[379998225,1755467439452,-480.0,0.00019178,2]
[379998226,1755467439461,-625.35305546,0.00019178,2]
[379998227,1755467439470,-480.0,0.00019178,2]
[379998229,1755467439480,-320.0,0.00019178,2]
[379998231,1755467439489,-461.71480377,0.00019178,2]
[379998233,1755467439498,-590.47,0.00019178,2]
[379998235,1755467439508,-480.0,0.00019178,2]
[379998237,1755467439517,-480.0,0.00019178,2]
[379998239,1755467439526,-480.0,0.00019178,2]
[379998241,1755467439536,-480.0,0.00019178,2]
[379998243,1755467439545,-420.0,0.00019178,2]
[379998245,1755467439555,-480.0,0.00019178,2]
[379998247,1755467439564,-480.0,0.00019178,2]
[379998249,1755467439574,-444.65828614,0.00019178,2]
[379998251,1755467439583,-480.0,0.00019178,2]
[379998253,1755467439592,-480.0,0.00019178,2]
[379998255,1755467439601,-480.0,0.00019178,2]
[379998257,1755467439610,-480.0,0.00019178,2]
[379998259,1755467439620,-480.0,0.00019178,2]
[379998261,1755467439629,-440.0,0.00019178,2]
[379998263,1755467439638,-480.0,0.00019178,2]
[379998265,1755467439647,-480.0,0.00019178,2]
[379998267,1755467439656,-480.0,0.00019178,2]
[379998269,1755467439665,-480.0,0.00019178,2]
[379998271,1755467439674,-480.0,0.00019178,2]
[379998273,1755467439684,-480.0,0.00019178,2]
[379998275,1755467439694,-480.0,0.00019178,2]
[379998277,1755467439703,-480.0,0.00019178,2]
[379998279,1755467439713,-618.68838048,0.00019178,2]
[379998281,1755467439722,-480.0,0.00019178,2]
[379998283,1755467439732,-480.0,0.00019178,2]
[379998285,1755467439741,-444.93878312,0.00019178,2]
[379998287,1755467439750,-480.0,0.00019178,2]
[379998289,1755467439759,-480.0,0.00019178,2]
[379998291,1755467439769,-480.0,0.00019178,2]
[379998292,1755467439779,-480.0,0.00019178,2]
[379998295,1755467439788,-153.15,0.00019178,2]
[379998296,1755467439797,-480.0,0.00019178,2]
[379998298,1755467439806,-480.0,0.00019178,2]
[379998300,1755467439815,-480.0,0.00019178,2]
[379998302,1755467439824,-480.0,0.00019178,2]
[379998304,1755467439834,-480.0,0.00019178,2]
[379998306,1755467439843,-576.93,0.00019178,2]
[379998308,1755467439852,-303.63590484,0.00019178,2]
[379998310,1755467439862,-480.0,0.00019178,2]
[379998312,1755467439871,-151.25,0.00019178,2]
[379998314,1755467439881,-480.0,0.00019178,2]
[379998316,1755467439890,-500.0,0.00019178,2]
[379998318,1755467439899,-500.0,0.00019178,2]
[379998320,1755467439908,-480.0,0.00019178,2]
[379998322,1755467439917,-480.0,0.00019178,2]
[379998324,1755467439926,-421.12831416,0.00019178,2]
[379998326,1755467439936,-480.0,0.00019178,2]
[379998328,1755467439945,-480.0,0.00019178,2]
[379998330,1755467439955,-460.0,0.00019178,2]
[379998332,1755467439964,-480.0,0.00019178,2]
[379998334,1755467439974,-777.35649148,0.00019178,2]
[379998336,1755467439983,-480.0,0.00019178,2]
[379998338,1755467439994,-464.57210559,0.00019178,2]
[379998340,1755467440004,-480.0,0.00019178,2]
[379998342,1755467440013,-480.0,0.00019178,2]
[379998344,1755467440022,-480.0,0.00019178,2]
[379998346,1755467440031,-506.7498933,0.00019178,2]
[379998348,1755467440040,-480.0,0.00019178,2]
[379998350,1755467440050,-480.0,0.00019178,2]
[379998352,1755467440059,-480.0,0.00019178,2]
[379998354,1755467440068,-482.03528139,0.00019178,2]
[379998357,1755467440078,-480.0,0.00019178,2]
[379998359,1755467440088,-480.0,0.00019178,2]
[379998361,1755467440097,-480.0,0.00019178,2]
[379998363,1755467440106,-480.0,0.00019178,2]
[379998365,1755467440115,-480.0,0.00019178,2]
[379998367,1755467440124,-480.0,0.00019178,2]
[379998368,1755467440133,-480.0,0.00019178,2]
[379998370,1755467440142,-480.0,0.00019178,2]
[379998372,1755467440151,-480.0,0.00019178,2]
[379998374,1755467440161,-480.0,0.00019178,2]
[379998376,1755467440171,-500.0,0.00019178,2]
[379998378,1755467440180,-500.0,0.00019178,2]
[379998380,1755467440189,-500.0,0.00019178,2]
[379998383,1755467440198,-500.0,0.00019178,2]
[379998386,1755467440208,-500.0,0.00019178,2]
[379998389,1755467440218,-500.0,0.00019178,2]
[379998392,1755467440227,-500.0,0.00019178,2]
[379998395,1755467440236,-480.0,0.00019178,2]
[379998397,1755467440246,-480.0,0.00019178,2]
[379998399,1755467440255,-480.0,0.00019178,2]
[379998401,1755467440264,-480.0,0.00019178,2]
[379998404,1755467440275,-480.0,0.00019178,2]
[379998406,1755467440285,-444.74189389,0.00019178,2]
[379998407,1755467440294,-480.0,0.00019178,2]
[379998409,1755467440304,-1887.97,0.00019178,2]
[379998411,1755467440313,-480.0,0.00019178,2]
[379998413,1755467440323,-480.0,0.00019178,2]
[379998416,1755467440333,-480.0,0.00019178,2]
[379998418,1755467440343,-480.0,0.00019178,2]
[379998420,1755467440352,-480.0,0.00019178,2]
[379998421,1755467440362,-480.0,0.00019178,2]
[379998423,1755467440371,-440.0,0.00019178,2]
[379998425,1755467440380,-480.0,0.00019178,2]
[379998427,1755467440390,-480.0,0.00019178,2]
[379998429,1755467440400,-480.0,0.00019178,2]
[379998431,1755467440410,-480.0,0.00019178,2]
[379998433,1755467440419,-480.0,0.00019178,2]
[379998435,1755467440428,-480.0,0.00019178,2]
[379998437,1755467440438,-480.0,0.00019178,2]
[379998439,1755467440448,-480.0,0.00019178,2]
[379998442,1755467440458,-480.0,0.00019178,2]
[379998443,1755467440468,-480.0,0.00019178,2]
[379998445,1755467440478,-480.0,0.00019178,2]
[379998448,1755467440487,-480.0,0.00019178,2]
[379998450,1755467440497,-480.0,0.00019178,2]
[379998452,1755467440506,-480.0,0.00019178,2]
[379998454,1755467440516,-480.0,0.00019178,2]
[379998456,1755467440526,-500.0,0.00019178,2]
[379998458,1755467440536,-480.0,0.00019178,2]
[379998459,1755467440545,-500.0,0.00019178,2]
[379998461,1755467440555,-500.0,0.00019178,2]
[379998463,1755467440564,-614.20451056,0.00019178,2]
[379998465,1755467440574,-480.0,0.00019178,2]
[379998468,1755467440584,-480.0,0.00019178,2]
[379998469,1755467440594,-480.0,0.00019178,2]
[379998471,1755467440604,-498.44,0.00019178,2]
[379998473,1755467440613,-480.0,0.00019178,2]
[379998475,1755467440623,-480.0,0.00019178,2]
[379998477,1755467440632,-480.0,0.00019178,2]
[379998479,1755467440642,-480.0,0.00019178,2]
[379998481,1755467440651,-480.0,0.00019178,2]
[379998483,1755467440661,-480.0,0.00019178,2]
[379998485,1755467440671,-480.0,0.00019178,2]
[379998487,1755467440680,-480.0,0.00019178,2]
[379998489,1755467440689,-480.0,0.00019178,2]
[379998491,1755467440700,-480.0,0.00019178,2]
[379998493,1755467440710,-462.59989361,0.00019178,2]
[379998495,1755467440719,-480.0,0.00019178,2]
[379998496,1755467440728,-480.0,0.00019178,2]
[379998497,1755467440737,-480.0,0.00019178,2]
[379998498,1755467440747,-545.31,0.00019178,2]
[379998499,1755467440757,-480.0,0.00019178,2]
[379998500,1755467440766,-480.0,0.00019178,2]
[379998501,1755467440775,-460.83958604,0.00019178,2]
[379998502,1755467440785,-500.0,0.00019178,2]
[379998503,1755467440794,-500.0,0.00019178,2]
[379998504,1755467440804,-480.0,0.00019178,2]
[379998505,1755467440813,-446.76545114,0.00019178,2]
[379998506,1755467440824,-462.56613767,0.00019178,2]
[379998507,1755467440834,-480.0,0.00019178,2]
[379998508,1755467440843,-480.0,0.00019178,2]
[379998509,1755467440853,-480.0,0.00019178,2]
[379998510,1755467440863,-666.22,0.00019178,2]
[379998511,1755467440872,-480.0,0.00019178,2]
[379998512,1755467440881,-480.0,0.00019178,2]
[379998513,1755467440896,-480.0,0.00019178,2]
[379998514,1755467440906,-480.0,0.00019178,2]
[379998515,1755467440915,-480.0,0.00019178,2]
[379998516,1755467440925,-480.0,0.00019178,2]
[379998517,1755467440935,-480.0,0.00019178,2]
[379998518,1755467440945,-480.0,0.00019178,2]
[379998519,1755467440954,-480.0,0.00019178,2]
[379998520,1755467440964,-480.0,0.00019178,2]
[379998521,1755467440974,-480.0,0.00019178,2]
[379998522,1755467440984,-480.0,0.00019178,2]
[379998523,1755467440995,-480.0,0.00019178,2]
[379998524,1755467441006,-480.0,0.00019178,2]
[379998525,1755467441016,-480.0,0.00019178,2]
[379998526,1755467441025,-480.0,0.00019178,2]
[379998527,1755467441035,-480.0,0.00019178,2]
[379998528,1755467441044,-480.0,0.00019178,2]
[379998529,1755467441054,-480.0,0.00019178,2]
[379998530,1755467441064,-400.0,0.00019178,2]
[379998531,1755467441074,-480.0,0.00019178,2]
[379998533,1755467441084,-480.0,0.00019178,2]
[379998535,1755467441093,-480.0,0.00019178,2]
[379998537,1755467441103,-480.0,0.00019178,2]
[379998539,1755467441113,-480.0,0.00019178,2]
[379998541,1755467441122,-480.0,0.00019178,2]
[379998543,1755467441132,-407.34755068,0.00019178,2]
[379998545,1755467441140,-500.0,0.00019178,2]
[379998547,1755467441149,-480.0,0.00019178,2]
[379998549,1755467441159,-480.0,0.00019178,2]
[379998551,1755467441168,-611.46,0.00019178,2]
[379998553,1755467441177,-480.0,0.00019178,2]
[379998555,1755467441187,-480.0,0.00019178,2]
[379998557,1755467441196,-462.3860387,0.00019178,2]
[379998559,1755467441205,-578.60655237,0.00019178,2]
[379998561,1755467441214,-440.0,0.00019178,2]
[379998563,1755467441223,-480.0,0.00019178,2]
[379998565,1755467441232,-480.0,0.00019178,2]
[379998567,1755467441242,-1283.29,0.00019178,2]
[379998569,1755467441251,-480.0,0.00019178,2]
[379998570,1755467441262,-480.0,0.00019178,2]
[379998572,1755467441271,-480.0,0.00019178,2]
[379998575,1755467441281,-480.0,0.00019178,2]
[379998576,1755467441291,-421.25850553,0.00019178,2]
[379998579,1755467441301,-480.0,0.00019178,2]
[379998581,1755467441310,-480.0,0.00019178,2]
[379998583,1755467441320,-480.0,0.00019178,2]
[379998584,1755467441329,-1139.4,0.00019178,2]
[379998586,1755467441338,-480.0,0.00019178,2]
[379998588,1755467441347,-480.0,0.00019178,2]
[379998590,1755467441357,-480.0,0.00019178,2]
[379998593,1755467441367,-480.0,0.00019178,2]
[379998595,1755467441376,-480.0,0.00019178,2]
[379998596,1755467441385,-480.0,0.00019178,2]
[379998598,1755467441395,-420.0,0.00019178,2]
[379998600,1755467441406,-370.19559932,0.00019178,2]
[379998602,1755467441415,-225.37535172,0.00019178,2]
[379998604,1755467441424,-331.34347379,0.00019273,2]
[379998606,1755467441434,-152.01417573,0.00019278,2]
[379998608,1755467441444,-200.0,0.00019344,20]
[379998610,1755467441453,-200.0,0.00019344,20]
[379998612,1755467441462,-200.0,0.00019344,20]
[379998614,1755467441472,-200.0,0.00019344,20]
[379998616,1755467441481,-200.0,0.00019344,20]
[379998618,1755467441491,-200.0,0.00019344,20]
[379998620,1755467441500,-200.0,0.00019344,20]
[379998622,1755467441510,-200.0,0.00019344,20]
[379998624,1755467441519,-200.0,0.00019344,20]
[379998626,1755467441529,-200.0,0.00019344,20]
[379998628,1755467441538,-600.0,0.00019344,20]
[379998630,1755467441547,-500.0,0.00019451,2]
[379998632,1755467441556,-460.0,0.00019452,2]
[379998634,1755467441565,-480.0,0.00019452,2]
[379998636,1755467441574,-480.0,0.00019452,2]
[379998638,1755467441583,-480.0,0.00019452,2]
[379998641,1755467441593,-480.0,0.00019452,2]
[379998642,1755467441602,-480.0,0.00019452,2]
[379998644,1755467441611,-480.0,0.00019452,2]
[379998646,1755467441620,-480.0,0.00019452,2]
[379998649,1755467441632,-480.0,0.00019452,2]
[379998651,1755467441641,-480.0,0.00019452,2]
[379998665,1755467441768,-480.0,0.00019452,2]
[379998667,1755467441780,-480.0,0.00019452,2]
[379998669,1755467441790,-480.0,0.00019452,2]
[379998671,1755467441800,-480.0,0.00019452,2]
[379998673,1755467441810,-480.0,0.00019452,2]
[379998676,1755467441819,-480.0,0.00019452,2]
[379998678,1755467441829,-480.0,0.00019452,2]
[379998680,1755467441838,-480.0,0.00019452,2]
[379998682,1755467441847,-480.0,0.00019452,2]
[379998683,1755467441856,-480.0,0.00019452,2]
[379998685,1755467441866,-480.0,0.00019452,2]
[379998687,1755467441875,-480.0,0.00019452,2]
[379998689,1755467441885,-1887.97,0.00019452,2]
[379998691,1755467441894,-393.88,0.00019452,2]
[379998694,1755467441904,-480.0,0.00019452,2]
[379998696,1755467441914,-480.0,0.00019452,2]
[379998697,1755467441923,-480.0,0.00019452,2]
[379998700,1755467441933,-480.0,0.00019452,2]
[379998702,1755467441943,-480.0,0.00019452,2]
[379998704,1755467441954,-460.0,0.00019452,2]
[379998706,1755467441965,-480.0,0.00019452,2]
[379998708,1755467441976,-480.0,0.00019452,2]
[379998709,1755467441985,-480.0,0.00019452,2]
[379998712,1755467441998,-480.0,0.00019452,2]
[379998714,1755467442009,-480.0,0.00019452,2]
[379998715,1755467442019,-480.0,0.00019452,2]
[379998717,1755467442030,-666.22,0.00019452,2]
[379998719,1755467442040,-480.0,0.00019452,2]
[379998721,1755467442049,-480.0,0.00019452,2]
[379998724,1755467442059,-480.0,0.00019452,2]
[379998726,1755467442070,-480.0,0.00019452,2]
[379998728,1755467442079,-611.46,0.00019452,2]
[379998730,1755467442091,-1283.29,0.00019452,2]
[379998732,1755467442100,-480.0,0.00019452,2]
[379998734,1755467442112,-480.0,0.00019452,2]
[379998735,1755467442121,-480.0,0.00019452,2]
[379998738,1755467442131,-480.0,0.00019452,2]
[379998740,1755467442140,-1139.4,0.00019452,2]
[379998741,1755467442149,-151.0,0.00019521,2]
[379998743,1755467442158,-151.0,0.00019521,2]
[379998746,1755467442168,-151.0,0.00019521,2]
[379998748,1755467442177,-151.0,0.00019521,2]
[379998749,1755467442187,-151.0,0.00019521,2]
[379998751,1755467442196,-151.0,0.00019521,2]
[379998753,1755467442205,-151.0,0.00019521,2]
[379998755,1755467442215,-454.0,0.00019521,2]
[379998757,1755467442224,-151.0,0.00019521,2]
[379998759,1755467442233,-201.65566068,0.00019521,2]
[379998761,1755467442243,-151.0,0.00019521,2]
[379998763,1755467442252,-151.0,0.00019521,2]
[379998765,1755467442262,-151.0,0.00019521,2]
[379998767,1755467442271,-239.82997205,0.00019521,2]
[379998769,1755467442281,-151.0,0.00019521,2]
[379998771,1755467442290,-151.2569465,0.00019521,2]
[379998773,1755467442300,-151.0,0.00019521,2]
[379998775,1755467442309,-151.0,0.00019521,2]
[379998777,1755467442318,-189.19364358,0.00019521,2]
[379998779,1755467442328,-151.0,0.00019521,2]
[379998781,1755467442338,-151.0,0.00019521,2]
[379998783,1755467442347,-151.0,0.00019521,2]
[379998785,1755467442356,-500.0,0.00019721,2]
[379998787,1755467442367,-1000.0,0.00019721,2]
[379998789,1755467442376,-1000.0,0.00019721,2]
[379998791,1755467442385,-602.38973704,0.00019721,2]
[379998793,1755467442395,-1000.0,0.00019721,2]
[379998795,1755467442404,-500.0,0.00019721,2]
[379998797,1755467442413,-1000.0,0.00019721,2]
[379998799,1755467442423,-1000.0,0.00019721,2]
[379998801,1755467442432,-1000.0,0.00019721,2]
[379998803,1755467442442,-500.0,0.00019725,2]
[379998805,1755467442451,-496.27,0.00019726,2]
[379998807,1755467442460,-387.19,0.00019726,2]
[379998809,1755467442470,-480.0,0.00019726,2]
[379998811,1755467442479,-480.0,0.00019726,2]
[379998813,1755467442488,-1887.97,0.00019726,2]
[379998815,1755467442497,-480.0,0.00019726,2]
[379998817,1755467442506,-480.0,0.00019726,2]
[379998819,1755467442516,-480.0,0.00019726,2]
[379998821,1755467442525,-480.0,0.00019726,2]
[379998823,1755467442535,-480.0,0.00019726,2]
[379998825,1755467442544,-666.22,0.00019726,2]
[379998827,1755467442553,-480.0,0.00019726,2]
[379998829,1755467442562,-480.0,0.00019726,2]
[379998831,1755467442571,-512.48,0.00019726,2]
[379998833,1755467442581,-480.0,0.00019726,2]
[379998835,1755467442590,-611.46,0.00019726,2]
[379998837,1755467442599,-1283.29,0.00019726,2]
[379998839,1755467442608,-480.0,0.00019726,2]
[379998840,1755467442617,-480.0,0.00019726,2]
[379998842,1755467442626,-380.81,0.00019726,2]
[379998844,1755467442635,-1139.4,0.00019726,2]
[379998845,1755467442645,-150.0,0.00019751,2]
[379998846,1755467442654,-329.0,0.00019786,2]
[379998847,1755467442663,-198.0,0.00019795,2]
[379998848,1755467442672,-151.0,0.00019795,2]
[379998849,1755467442682,-151.0,0.00019795,2]
[379998850,1755467442691,-151.0,0.00019795,2]
[379998851,1755467442700,-454.0,0.00019795,2]
[379998852,1755467442709,-151.0,0.00019795,2]
[379998853,1755467442719,-151.0,0.00019795,2]
[379998854,1755467442728,-151.0,0.00019795,2]
[379998855,1755467442738,-151.0,0.00019795,2]
[379998856,1755467442747,-151.0,0.00019795,2]
[379998857,1755467442757,-843.554346,0.00019863,2]
[379998858,1755467442766,-8453.82099178,0.000199,2]
[379998859,1755467442775,-500.0,0.00019999,2]
[379998860,1755467442784,-480.0,0.0002,2]
[379998861,1755467442793,-480.0,0.0002,2]
[379998862,1755467442803,-1887.97,0.0002,2]
[379998863,1755467442812,-480.0,0.0002,2]
[379998864,1755467442821,-480.0,0.0002,2]
[379998865,1755467442831,-480.0,0.0002,2]
[379998866,1755467442840,-480.0,0.0002,2]
[379998867,1755467442849,-480.0,0.0002,2]
[379998868,1755467442858,-666.22,0.0002,2]
[379998869,1755467442867,-480.0,0.0002,2]
[379998870,1755467442877,-480.0,0.0002,2]
[379998871,1755467442886,-160.0,0.0002,3]
[379998872,1755467442895,-480.0,0.0002,2]
[379998873,1755467442904,-611.46,0.0002,2]
[379998874,1755467442913,-1283.29,0.0002,2]
[379998875,1755467442923,-480.0,0.0002,2]
[379998876,1755467442932,-480.0,0.0002,2]
[379998877,1755467442941,-1139.4,0.0002,2]
[379998878,1755467442950,-212.58784812,0.00020065,2]
[379998879,1755467442959,-500.0,0.00020065,2]
[379998880,1755467442969,-151.0,0.00020069,2]
[379998881,1755467442978,-151.0,0.00020069,2]
[379998882,1755467442987,-151.0,0.00020069,2]
[379998883,1755467443002,-454.0,0.00020069,2]
[379998884,1755467443011,-198.0,0.00020069,2]
[379998885,1755467443020,-151.0,0.00020069,2]